bitfinex/quotes_ETHUSD_20260228
["timestamp","ask_amount","ask_price","bid_price","bid_amount"]
[1772306465922,0.002,1927.8,1926.6,9.86216196]
[1772306465923,6.69859951,1927.8,1926.6,9.86216196]
[1772306466228,0.002,1927.8,1927.2,4.96276535]
[1772306466786,0.002,1927.8,1927.3,1.29715145]
[1772306468204,5.40174649,1927.8,1927.1,1.29723665]
[1772306468926,5.40174649,1927.8,1927.1,6.260002]
[1772306469799,0.002,1927.8,1927.3,4.96276535]
[1772306470809,5.39974649,1928.1,1927.1,1.29723665]
[1772306471014,5.39974649,1928.1,1927.1,6.260002]
[1772306471238,5.39974649,1928.0,1927.1,6.260002]
[1772306472038,6.69649424,1927.9,1926.7,1.29752997]
[1772306473329,5.39974649,1927.7,1926.7,1.29752997]
[1772306473796,7.60074649,1927.7,1926.8,4.96276535]
[1772306474003,6.69669606,1927.6,1926.9,1.29742072]
[1772306476232,6.69669606,1927.6,1926.8,1.29744047]
[1772306476427,6.69669606,1927.6,1926.6,1.29857513]
[1772306476831,5.39974649,1927.6,1926.9,10.05301649]
[1772306477030,6.69670274,1927.6,1926.9,10.05301649]
[1772306477448,5.39974649,1927.6,1926.9,10.05301649]
[1772306477617,6.69669624,1927.6,1926.9,10.05301649]
[1772306478406,5.20003871,1927.8,1927.0,6.45097327]
[1772306478837,7.40203871,1927.8,1927.0,6.45097327]
[1772306480047,5.20003871,1927.7,1927.0,6.45097327]
[1772306481745,6.49693052,1927.7,1927.0,6.45097327]
[1772306481929,5.20003871,1927.7,1927.0,6.45097327]
[1772306482741,5.20003871,1927.7,1927.1,5.15361988]
[1772306483241,5.20003871,1927.7,1927.2,1.29721876]
[1772306484738,5.20003871,1927.7,1927.2,6.19661537]
[1772306484942,0.002,1928.0,1927.5,10.05301649]
[1772306485438,0.002,1927.7,1927.6,1.29694957]
[1772306485613,0.002,1928.1,1927.6,1.29694957]
[1772306485809,0.002,1927.8,1927.6,1.29694957]
[1772306486024,0.002,1928.1,1927.6,1.29694957]
[1772306487241,0.002,1928.1,1927.6,6.45056945]
[1772306490556,5.20003871,1928.0,1927.3,10.34214757]
[1772306490724,5.20003871,1928.0,1927.1,0.001]
[1772306490924,0.002,1928.1,1927.1,1.29827723]
[1772306490925,5.20003871,1927.8,1927.1,1.29827723]
[1772306491951,6.49686785,1927.8,1927.1,1.29827723]
[1772306492951,6.49686785,1927.8,1927.1,0.001]
[1772306494057,5.20003871,1927.7,1927.1,0.001]
[1772306495857,5.20003871,1928.0,1927.4,10.05301649]
[1772306496063,5.20003871,1928.0,1927.5,1.29701686]
[1772306496264,1.29863002,1928.1,1927.5,6.45063674]
[1772306496476,0.002,1928.3,1927.8,5.15361988]
[1772306497571,1.29848117,1928.3,1927.8,5.15361988]
[1772306497752,6.49851988,1928.3,1927.5,1.29701686]
[1772306497950,0.002,1927.7,1927.5,1.29701686]
[1772306498138,0.002,1927.8,1927.5,1.29701686]
[1772306499645,1.29848117,1928.3,1927.6,5.15361988]
[1772306499646,0.002,1928.3,1927.6,5.15361988]
[1772306499842,5.20203871,1928.3,1927.8,4.89939661]
[1772306500055,5.20203871,1928.3,1927.9,1.29674775]
[1772306501253,0.002,1928.3,1927.9,4.79478735]
[1772306506447,4.70713691,1928.3,1927.9,4.79478735]
[1772306509385,4.70713691,1928.3,1927.7,1.29688229]
[1772306509386,4.70513691,1928.2,1927.7,1.29688229]
[1772306511358,4.70713691,1928.2,1927.7,1.29688229]
[1772306511977,0.002,1928.2,1927.7,1.29688229]
[1772306512181,0.002,1928.2,1927.9,3.4980396]
[1772306512777,4.70713691,1928.2,1927.9,3.4980396]
[1772306513770,0.002,1928.2,1928.0,1.29668049]
[1772306514188,0.002,1928.2,1927.9,4.7947367]
[1772306515874,0.002,1928.2,1927.9,1.2966971]
[1772306516088,4.70713691,1928.2,1927.9,1.2966971]
[1772306517357,4.70713691,1928.2,1927.7,9.46098873]
[1772306519208,0.002,1928.5,1928.1,4.66611091]
[1772306519365,4.70513691,1928.9,1928.4,3.4980396]
[1772306519573,4.70513691,1928.9,1927.9,4.66611091]
[1772306520090,4.70513691,1928.9,1927.8,3.4980396]
[1772306520299,4.70513691,1928.7,1927.9,4.66611091]
[1772306520460,4.70513691,1928.7,1927.8,3.4980396]
[1772306520659,4.70513691,1928.5,1927.9,1.29674775]
[1772306521195,4.70513691,1928.5,1927.9,5.96285866]
[1772306521660,4.70513691,1928.5,1927.9,1.29674775]
[1772306522660,4.70513691,1928.3,1927.9,1.29674775]
[1772306522863,4.70513691,1928.3,1927.8,3.4980396]
[1772306523090,4.70513691,1928.3,1928.0,0.001]
[1772306524202,4.70513691,1928.4,1928.0,0.001]
[1772306524897,4.70513691,1928.4,1928.0,1.29768049]
[1772306525263,0.002,1928.8,1928.4,4.66611091]
[1772306525693,0.002,1928.8,1928.3,3.4980396]
[1772306525694,6.00328089,1928.8,1928.3,3.4980396]
[1772306525862,4.70713691,1928.8,1928.3,3.4980396]
[1772306526064,4.70713691,1928.8,1928.3,8.16415051]
[1772306526977,6.0032812,1928.8,1928.3,9.46057271]
[1772306528000,4.70713691,1928.8,1928.3,9.46057271]
[1772306528588,6.00328546,1928.8,1928.3,9.46057271]
[1772306528895,4.70713691,1928.8,1928.3,9.46057271]
[1772306529298,0.002,1928.8,1928.4,4.66611091]
[1772306531104,0.002,1928.8,1928.5,1.2963443]
[1772306531398,0.002,1928.8,1928.4,5.96246968]
[1772306531593,4.70713691,1928.8,1928.4,4.66611091]
[1772306533505,4.70713691,1928.8,1928.2,4.66611091]
[1772306533708,4.70513691,1928.6,1928.0,4.66711091]
[1772306534076,0.002,1928.8,1928.5,3.4980396]
[1772306534304,0.002,1928.8,1928.6,4.66611091]
[1772306534502,0.002,1928.8,1928.5,3.4980396]
[1772306535981,4.70713691,1928.8,1928.2,9.46065417]
[1772306536514,4.70713691,1928.8,1928.2,4.79454326]
[1772306537004,4.7493936,1928.6,1928.2,4.79454326]
[1772306538329,4.7493936,1928.6,1928.1,1.29756624]
[1772306538603,4.7493936,1928.6,1928.1,9.82221282]
[1772306538836,0.002,1928.7,1928.3,5.02660698]
[1772306538977,1.55649727,1929.9,1928.6,3.4980396]
[1772306538978,4.7493936,1929.2,1928.6,3.4980396]
[1772306539177,4.7493936,1929.4,1929.0,3.4980396]
[1772306539686,2.2,1929.4,1929.0,3.4980396]
[1772306540200,2.2,1929.4,1929.0,8.52464658]
[1772306540824,6.04505344,1929.6,1929.0,9.82062496]
[1772306541026,4.7493936,1929.5,1929.0,3.4980396]
[1772306541691,4.7493936,1929.5,1928.7,1.29616394]
[1772306542250,4.7493936,1929.5,1928.7,4.79420354]
[1772306543322,4.7493936,1929.3,1928.7,4.79420354]
[1772306543525,4.7493936,1929.3,1928.7,9.82081052]
[1772306544599,4.7493936,1929.3,1928.7,4.79420354]
[1772306545421,6.04522739,1929.3,1928.7,4.79420354]
[1772306545604,2.199,1929.4,1929.0,3.4980396]
[1772306545808,4.7493936,1929.3,1929.0,3.4980396]
[1772306547530,4.7493936,1929.1,1928.5,1.2963443]
[1772306547995,4.7493936,1929.1,1928.4,3.4980396]
[1772306549022,4.7493936,1929.1,1928.1,0.001]
[1772306549417,4.7493936,1928.9,1928.1,0.001]
[1772306549615,1.29600829,1929.0,1928.1,0.001]
[1772306549616,4.7493936,1928.7,1928.1,0.001]
[1772306550325,4.7493936,1928.7,1928.2,0.001]
[1772306551403,2.2,1928.6,1928.2,0.001]
[1772306551604,8.24571533,1928.6,1928.2,0.001]
[1772306552028,6.04559277,1928.8,1928.2,8.52564658]
[1772306552332,4.7493936,1928.7,1928.2,8.52564658]
[1772306552630,4.7493936,1928.7,1928.2,3.4990396]
[1772306552831,4.7493936,1928.7,1928.2,0.001]
[1772306554521,6.04567069,1928.6,1928.2,0.001]
[1772306555029,1.29623801,1928.7,1928.2,5.02760698]
[1772306555220,6.9503936,1928.8,1928.3,5.02660698]
[1772306555534,6.04544404,1929.0,1928.4,5.02660698]
[1772306555730,4.7493936,1928.9,1928.4,5.02660698]
[1772306556634,4.7493936,1928.7,1928.2,0.001]
[1772306558738,1.29627709,1928.6,1928.2,0.001]
[1772306561840,4.7493936,1928.6,1928.2,0.001]
[1772306562210,4.7493936,1928.6,1928.0,4.79567859]
[1772306562211,4.7493936,1928.6,1927.5,6.32357981]
[1772306562536,4.7493936,1928.6,1928.3,0.001]
[1772306562711,4.7493936,1928.6,1927.6,5.02660698]
[1772306563724,4.7493936,1928.6,1928.0,0.001]
[1772306564439,5.14107276,1928.4,1928.0,0.001]
[1772306564621,7.34607276,1928.3,1928.0,0.001]
[1772306564820,5.14107276,1928.2,1928.0,0.001]
[1772306566341,1.29661324,1928.1,1928.0,0.001]
[1772306567451,5.10742505,1928.0,1927.4,10.46628047]
[1772306567657,5.10742505,1928.0,1927.5,5.27806634]
[1772306569517,6.40416332,1928.0,1927.5,6.57504293]
[1772306570012,1.29673827,1928.0,1927.5,6.57504293]
[1772306571145,1.29673827,1928.0,1927.5,5.27806634]
[1772306571342,1.29673827,1928.0,1927.5,6.57506841]
[1772306571543,1.29673827,1928.0,1927.5,5.27806634]
[1772306571748,1.29673827,1928.0,1927.5,6.57506169]
[1772306573344,1.29673827,1928.0,1927.2,0.001]
[1772306573546,1.29673827,1928.0,1927.2,1.29821728]
[1772306573547,5.10742505,1927.9,1927.2,1.29821728]
[1772306573859,5.10742505,1927.7,1927.2,0.001]
[1772306574060,5.10742505,1927.5,1927.2,0.001]
[1772306574549,5.10742505,1927.5,1927.0,0.001]
[1772306575126,5.10742505,1927.5,1926.6,0.001]
[1772306575326,5.10742505,1927.4,1926.6,0.001]
[1772306575731,5.10742505,1927.2,1926.6,0.001]
[1772306577567,7.31742505,1927.2,1926.6,0.001]
[1772306578553,1.29728607,1927.1,1926.6,0.001]
[1772306578881,7.31842505,1927.6,1926.8,5.27806634]
[1772306579034,5.10742505,1927.5,1926.8,5.27806634]
[1772306579950,7.31842505,1927.5,1926.8,5.27806634]
[1772306580839,1.29708415,1927.4,1926.9,1.29742072]
[1772306581049,5.10742505,1927.3,1926.6,0.001]
[1772306581565,7.31842505,1927.2,1926.6,6.57668406]
[1772306582677,6.4045092,1927.4,1926.6,6.57668406]
[1772306582872,2.211,1927.2,1926.6,6.57668406]
[1772306583079,2.211,1927.4,1926.7,5.27806634]
[1772306583776,5.10742505,1927.5,1926.7,5.27806634]
[1772306584080,7.31842505,1927.7,1926.7,5.27806634]
[1772306584376,5.10742505,1927.7,1926.7,5.27806634]
[1772306585462,6.4061728,1927.9,1927.0,5.27806634]
[1772306585666,1.29875384,1927.9,1927.3,5.27806634]
[1772306585866,0.002,1927.9,1927.3,5.27806634]
[1772306586377,0.002,1928.2,1927.6,5.27806634]
[1772306587654,0.002,1928.2,1927.8,5.27806634]
[1772306588368,8.61266618,1928.7,1928.0,5.27806634]
[1772306588561,5.10742505,1928.6,1928.0,5.27806634]
[1772306588992,5.10742505,1928.6,1927.8,10.17773794]
[1772306589760,5.10742505,1928.4,1927.5,6.5750832]
[1772306591961,1.29647876,1928.3,1927.6,5.27806634]
[1772306593466,1.29647876,1928.3,1927.5,6.5750832]
[1772306593467,5.10742505,1928.2,1927.5,6.5750832]
[1772306594474,1.29660975,1928.2,1927.5,6.5750832]
[1772306596690,6.40392679,1928.3,1927.5,6.5750832]
[1772306596856,7.20654493,1928.6,1927.5,6.5750832]
[1772306597059,3.8,1928.5,1927.5,6.5750832]
[1772306597293,8.80154493,1928.5,1927.5,6.5750832]
[1772306597988,8.80154493,1928.5,1927.6,4.8996716]
[1772306598192,8.80154493,1928.5,1927.7,5.01269511]
[1772306598693,1.29641153,1928.4,1927.8,6.30951013]
[1772306599225,5.09617135,1928.8,1928.0,5.01269511]
[1772306599494,6.29967621,1928.9,1928.0,5.01269511]
[1772306599669,5.00354493,1928.9,1928.0,5.01269511]
[1772306599868,6.29962043,1928.9,1928.0,5.01269511]
[1772306600203,5.00154493,1928.8,1927.7,6.30952514]
[1772306600494,5.00154493,1928.8,1927.7,5.01269511]
[1772306600662,5.00154493,1928.8,1927.7,6.30954747]
[1772306600663,1.29620988,1928.7,1927.7,6.30954747]
[1772306600868,5.00354493,1928.4,1927.7,6.30954747]
[1772306602794,1.29647876,1928.3,1927.7,6.30954747]
[1772306604279,6.29802369,1928.3,1927.7,6.30954747]
[1772306605591,5.00154493,1928.2,1927.5,6.30968235]
[1772306606504,5.00154493,1928.2,1927.4,5.01269511]
[1772306606873,5.00154493,1928.2,1927.6,5.01269511]
[1772306607073,6.2981197,1928.2,1927.6,5.01269511]
[1772306608881,6.2981197,1928.2,1927.6,6.30959031]
[1772306610215,5.00154493,1928.1,1927.1,7.23369511]
[1772306610508,5.00154493,1928.1,1927.3,5.01269511]
[1772306610509,7.20754493,1928.1,1927.3,5.01269511]
[1772306611015,5.00154493,1928.0,1927.3,5.01269511]
[1772306613278,1.29674775,1927.9,1927.4,6.30977926]
[1772306613677,1.29674775,1927.9,1927.7,0.001]
[1772306613882,2.205,1928.1,1927.7,0.001]
[1772306613883,5.18659181,1928.1,1927.7,0.001]
[1772306614077,7.39159181,1928.1,1927.7,0.001]
[1772306615419,10.18813674,1928.1,1927.7,0.001]
[1772306615717,5.00154493,1928.0,1927.7,0.001]
[1772306617797,6.29828848,1928.0,1927.7,0.001]
[1772306619917,1.29664694,1928.1,1927.7,0.001]
[1772306620287,10.18929959,1928.4,1927.7,5.01369511]
[1772306620488,1.29651824,1928.3,1927.7,5.01369511]
[1772306622346,6.29997028,1928.4,1927.8,6.30951013]
[1772306623123,6.29997028,1928.4,1927.9,5.01269511]
[1772306623495,5.09842535,1928.4,1927.7,1.29784487]
[1772306623715,5.00154493,1928.3,1927.7,6.31053998]
[1772306624424,1.296546,1928.2,1927.7,6.31053998]
[1772306624606,1.296546,1928.2,1927.8,5.09624984]
[1772306626130,6.34994543,1928.2,1927.7,1.29787795]
[1772306626293,1.296546,1928.2,1927.8,5.31018832]
[1772306626493,5.18593402,1928.3,1927.8,5.31018832]
[1772306627230,5.18593402,1928.3,1927.8,5.31118832]
[1772306627399,0.002,1928.1,1927.8,5.31118832]
[1772306629197,0.002,1928.1,1927.8,6.01098322]
[1772306633211,0.002,1928.1,1927.8,0.7007949]
[1772306634344,1.29861324,1928.1,1927.8,0.7007949]
[1772306635224,6.43957168,1928.1,1927.8,0.7007949]
[1772306637149,6.43957168,1928.1,1927.8,6.01098322]
[1772306640181,1.29861324,1928.1,1927.9,0.001]
[1772306640347,5.14095844,1928.6,1928.1,5.31018832]
[1772306640532,6.43724256,1928.6,1928.5,0.6997949]
[1772306641361,6.43724256,1928.6,1928.2,5.31018832]
[1772306641362,5.14095844,1928.5,1928.3,0.6997949]
[1772306644059,6.43734234,1928.5,1928.3,0.6997949]
[1772306647260,6.43734234,1928.5,1928.1,6.00998322]
[1772306647635,5.14095844,1928.4,1927.9,0.001]
[1772306647835,5.14095844,1928.4,1927.9,5.31118832]
[1772306648140,5.14095844,1928.2,1927.9,6.01098322]
[1772306649683,5.14095844,1928.4,1928.0,5.31018832]
[1772306649845,6.43728652,1928.6,1928.1,6.00998322]
[1772306650730,5.14095844,1928.5,1928.1,6.00998322]
[1772306651237,5.14095844,1928.5,1928.1,5.31018832]
[1772306651439,5.14095844,1928.5,1927.9,5.31118832]
[1772306651655,6.43736997,1928.4,1927.9,6.60792397]
[1772306652369,6.43736997,1928.4,1928.2,0.001]
[1772306652554,6.43936997,1928.4,1928.2,0.001]
[1772306653854,0.002,1928.4,1928.2,5.31118832]
[1772306655271,0.002,1928.5,1928.3,5.31018832]
[1772306655479,0.002,1928.7,1928.4,5.31018832]
[1772306656044,5.14295844,1928.7,1928.3,6.60660584]
[1772306656779,5.14295844,1928.7,1928.2,0.001]
[1772306657369,5.14295844,1928.7,1928.2,4.94867011]
[1772306657578,5.14295844,1928.7,1928.2,6.24521253]
[1772306658374,6.51286016,1928.6,1928.2,4.94867011]
[1772306658874,6.51286016,1928.6,1928.2,0.001]
[1772306661775,6.51286016,1928.6,1928.0,0.001]
[1772306661974,6.51286016,1928.6,1927.8,0.001]
[1772306661975,5.21658307,1928.5,1927.8,0.001]
[1772306662272,5.21658307,1928.3,1927.8,0.001]
[1772306664282,5.21658307,1928.3,1927.8,4.94867011]
[1772306664283,1.296546,1928.2,1927.8,4.94867011]
[1772306664451,6.51312907,1928.2,1927.8,4.94867011]
[1772306664651,6.51312907,1928.2,1927.8,0.001]
[1772306664949,5.21658307,1928.1,1927.8,0.001]
[1772306665358,3.549546,1928.2,1927.8,4.94867011]
[1772306665566,8.76612907,1928.2,1927.8,4.94867011]
[1772306666048,6.51312907,1928.2,1927.9,0.001]
[1772306666252,8.76712907,1928.2,1927.9,0.001]
[1772306666677,5.21658307,1928.1,1927.9,0.001]
[1772306667479,3.553546,1928.2,1927.9,0.001]
[1772306667979,8.77012907,1928.2,1927.9,0.001]
[1772306669159,9.01658307,1928.4,1927.9,4.94867011]
[1772306669373,12.57304185,1928.4,1927.9,4.94867011]
[1772306670785,5.21658307,1928.3,1927.9,4.94867011]
[1772306672104,8.77895255,1928.5,1928.0,4.94767011]
[1772306672693,5.21658307,1928.4,1927.9,0.001]
[1772306672892,6.51306183,1928.3,1927.9,6.24541581]
[1772306678123,6.51306183,1928.3,1928.0,0.001]
[1772306678296,0.002,1928.2,1928.0,0.001]
[1772306678620,0.002,1928.2,1928.0,4.94867011]
[1772306684232,0.002,1928.2,1927.9,0.001]
[1772306684233,5.27239188,1928.2,1927.9,0.001]
[1772306685513,5.27039188,1928.0,1927.7,0.001]
[1772306685715,5.27039188,1927.9,1927.7,0.001]
[1772306686125,5.09661324,1928.1,1927.8,4.22344643]
[1772306686126,9.07039188,1928.1,1927.8,4.22344643]
[1772306686919,5.05943143,1928.0,1927.7,0.001]
[1772306687827,6.356154,1928.0,1927.7,4.22034746]
[1772306688916,5.05943143,1927.9,1927.7,0.001]
[1772306690038,5.05943143,1927.7,1927.5,0.001]
[1772306690244,5.05943143,1927.7,1927.0,6.21287814]
[1772306690245,6.10910642,1927.7,1927.0,6.21287814]
[1772306691008,6.10910642,1927.7,1927.0,2.00672133]
[1772306691445,6.10910642,1927.7,1926.8,4.20289013]
[1772306691613,5.05943143,1927.4,1926.8,0.001]
[1772306691814,5.05943143,1927.4,1926.7,4.20289013]
[1772306691815,5.05943143,1927.0,1926.7,0.001]
[1772306693833,1.29742072,1926.9,1926.7,0.001]
[1772306694350,10.24906742,1927.0,1926.7,0.001]
[1772306694351,5.05943143,1927.0,1926.7,0.001]
[1772306694554,6.3567888,1927.0,1926.7,0.001]
[1772306694716,5.05943143,1926.9,1926.7,0.001]
[1772306695818,6.35689023,1926.9,1926.7,0.001]
[1772306696925,8.64761115,1927.3,1926.8,5.23082584]
[1772306697134,6.35661115,1927.3,1926.9,4.17682647]
[1772306697439,6.35661115,1927.3,1926.8,1.04967499]
[1772306697440,5.05943143,1927.2,1926.8,1.04967499]
[1772306698017,6.35668374,1927.2,1926.8,5.22217288]
[1772306698430,6.35668374,1927.2,1926.8,4.17249789]
[1772306699025,1.29725231,1927.2,1926.8,5.46998151]
[1772306699239,1.29725231,1927.2,1926.8,2.34715861]
[1772306699452,5.05943143,1927.1,1926.7,0.001]
[1772306699979,1.29735339,1927.0,1926.7,0.001]
[1772306700152,6.35678482,1927.0,1926.7,0.001]
[1772306701655,7.35543143,1927.2,1926.7,4.16057579]
[1772306701856,5.05943143,1927.6,1927.1,5.20925078]
[1772306702023,6.23664762,1928.1,1927.3,1.29715145]
[1772306702024,6.35629794,1927.8,1927.3,1.29715145]
[1772306702218,6.35629794,1927.8,1927.3,5.45242732]
[1772306702842,5.05943143,1927.7,1927.1,5.45253431]
[1772306703022,5.05943143,1927.7,1927.1,4.15527587]
[1772306703357,5.05943143,1927.7,1926.9,4.15096508]
[1772306703649,5.05943143,1927.5,1927.0,4.15096508]
[1772306704054,1.29708415,1927.4,1927.0,4.15096508]
[1772306705248,1.29708415,1927.4,1926.9,4.14231846]
[1772306705654,6.35651558,1927.4,1926.9,4.14231846]
[1772306705829,5.05943143,1927.3,1926.8,0.001]
[1772306706024,5.05943143,1927.3,1926.8,1.29848081]
[1772306706228,6.35664978,1927.3,1926.8,4.1390412]
[1772306712162,5.05943143,1927.2,1926.8,4.1390412]
[1772306713046,1.29721835,1927.3,1926.8,4.1390412]
[1772306713234,6.35664978,1927.3,1926.8,4.1390412]
[1772306714762,5.05943143,1927.2,1926.8,4.1390412]
[1772306715265,1.29728607,1927.1,1926.8,4.1390412]
[1772306716170,6.3567175,1927.1,1926.9,0.001]
[1772306717868,5.0261252,1927.0,1926.7,0.001]
[1772306719664,1.29742072,1926.9,1926.7,0.001]
[1772306719864,5.0261252,1927.2,1926.7,4.08456066]
[1772306720960,5.0261252,1927.2,1926.7,0.001]
[1772306721662,5.0261252,1927.2,1926.7,5.37381709]
[1772306721663,1.29728607,1927.1,1926.7,5.37381709]
[1772306722038,1.29728607,1927.1,1926.7,4.07628332]
[1772306722264,6.32341127,1927.1,1926.7,4.07628332]
[1772306722766,7.50236901,1927.4,1926.8,2.77389503]
[1772306722767,5.0281252,1927.4,1926.8,2.77389503]
[1772306722967,6.32520935,1927.4,1926.8,2.77389503]
[1772306724044,6.32520935,1927.4,1926.9,2.80655451]
[1772306725345,6.32520935,1927.4,1926.9,3.85713401]
[1772306726140,6.32520935,1927.4,1926.9,5.15452141]
[1772306726549,6.32520935,1927.4,1926.9,3.85713401]
[1772306726749,5.0261252,1927.3,1926.7,2.80102909]
[1772306728358,6.32334396,1927.2,1926.7,2.80102909]
[1772306729474,6.32334396,1927.2,1926.8,0.001]
[1772306730271,5.0261252,1927.1,1926.8,0.001]
[1772306730460,1.29735339,1927.0,1926.8,0.001]
[1772306730861,5.0261252,1927.1,1926.8,0.001]
[1772306731067,6.32341127,1927.1,1926.8,0.001]
[1772306732682,5.0261252,1927.1,1926.8,0.001]
[1772306732872,5.0261252,1927.1,1926.8,2.78131857]
[1772306734362,10.12533435,1927.3,1926.8,2.78131857]
[1772306734684,0.002,1927.3,1927.0,2.7737366]
[1772306737668,0.002,1927.3,1927.0,4.07106106]
[1772306739085,0.002,1927.3,1927.0,2.7737366]
[1772306739581,0.002,1927.3,1927.0,4.07108509]
[1772306740186,0.002,1927.3,1927.0,2.7737366]
[1772306741988,5.0281252,1927.3,1927.0,2.74776527]
[1772306742300,0.002,1927.2,1927.0,2.74776527]
[1772306742466,0.002,1927.2,1926.9,2.70359676]
[1772306742467,5.0281252,1927.2,1926.9,2.70359676]
[1772306742671,0.002,1927.2,1926.9,1.29841928]
[1772306742983,0.002,1927.2,1927.0,2.70259676]
[1772306743167,5.0281252,1927.2,1926.9,0.001]
[1772306743365,5.0281252,1927.2,1926.9,2.679472]
[1772306743785,6.32535137,1927.2,1926.9,2.679472]
[1772306743980,0.002,1927.2,1926.9,2.679472]
[1772306746274,0.002,1927.2,1926.9,3.97688966]
[1772306746593,0.002,1927.2,1927.0,2.63401679]
[1772306749076,6.28434625,1927.4,1927.0,3.93136313]
[1772306749292,6.28434625,1927.4,1927.0,2.63401679]
[1772306749487,4.9852278,1927.3,1927.0,2.63401679]
[1772306750480,6.28240362,1927.3,1927.0,2.63401679]
[1772306752603,4.9852278,1927.2,1926.9,2.56897572]
[1772306753880,4.9852278,1927.2,1926.9,3.86639238]
[1772306754202,4.9852278,1927.2,1927.0,0.001]
[1772306754511,4.9872278,1927.2,1927.0,0.001]
[1772306757782,0.002,1927.2,1927.0,2.51305659]
[1772306758507,4.9872278,1927.2,1927.0,0.001]
[1772306758978,0.002,1927.2,1927.0,2.50212996]
[1772306759184,0.002,1927.4,1927.1,2.49030145]
[1772306760281,0.002,1927.5,1927.3,2.47766861]
[1772306760482,0.002,1927.7,1927.5,2.47766861]
[1772306760688,0.002,1927.9,1927.6,2.47766861]
[1772306760912,0.002,1927.9,1927.7,3.17816521]
[1772306761495,4.9852278,1928.1,1927.8,2.46699416]
[1772306762804,4.9872278,1928.2,1927.9,2.45669629]
[1772306762994,4.9872278,1928.2,1927.9,3.15719289]
[1772306763197,4.9872278,1928.2,1927.9,2.45669629]
[1772306766084,4.9872278,1928.2,1927.9,3.75339286]
[1772306766493,4.9872278,1928.2,1928.0,0.001]
[1772306766698,0.002,1928.1,1928.0,2.41706939]
[1772306768226,0.002,1928.1,1928.0,3.71374988]
[1772306769083,4.9872278,1928.5,1928.1,2.38575964]
[1772306769289,4.9872278,1928.7,1928.3,4.68711163]
[1772306771018,4.9872278,1928.7,1928.4,5.98352316]
[1772306771247,0.002,1928.7,1928.5,4.68711163]
[1772306772091,0.002,1928.9,1928.6,5.38760823]
[1772306773114,0.002,1928.9,1928.7,5.98332151]
[1772306774128,0.002,1929.2,1928.8,5.38760823]
[1772306775592,0.002,1929.2,1928.9,5.98318711]
[1772306775801,0.002,1929.2,1929.0,4.68711163]
[1772306776118,0.002,1929.2,1929.0,5.38760823]
[1772306777901,0.002,1929.2,1929.1,1.29594111]
[1772306778102,0.002,1929.2,1929.1,6.32198933]
[1772306779296,0.002,1929.2,1929.1,7.02248593]
[1772306780128,4.63843314,1929.8,1929.2,5.02604822]
[1772306780295,4.63843314,1929.8,1929.3,0.7004966]
[1772306780625,4.63843314,1929.8,1929.2,5.72654482]
[1772306780988,4.63843314,1929.8,1929.1,1.29594111]
[1772306780989,4.63843314,1929.8,1929.3,5.72654482]
[1772306781191,5.0438118,1930.0,1929.6,5.72654482]
[1772306781620,5.93368411,1930.2,1929.8,0.7004966]
[1772306781924,5.93368411,1930.2,1929.7,5.72654482]
[1772306782119,5.93363973,1930.2,1929.8,6.32151925]
[1772306782415,4.63843314,1930.2,1929.8,6.32151925]
[1772306782794,4.63843314,1930.2,1929.8,5.02604822]
[1772306782795,4.63843314,1930.1,1929.8,5.02604822]
[1772306782993,4.63843314,1930.1,1929.6,1.29555157]
[1772306783199,4.63843314,1930.1,1929.6,6.32159979]
[1772306783702,4.63843314,1930.1,1929.7,5.02604822]
[1772306783901,4.63843314,1930.1,1929.7,5.72654482]
[1772306784129,4.63843314,1930.1,1929.7,7.02207074]
[1772306784330,5.93370313,1930.1,1929.7,7.02207074]
[1772306784629,4.63843314,1929.8,1929.3,2.262]
[1772306784929,4.63843314,1929.8,1929.2,1.99634545]
[1772306785231,4.63843314,1929.8,1929.2,7.02239367]
[1772306787325,5.9339713,1929.7,1929.2,6.32189707]
[1772306788527,4.63843314,1929.6,1928.9,8.58407067]
[1772306788839,4.63843314,1929.6,1929.0,5.02604822]
[1772306789834,4.63843314,1929.4,1929.0,6.3220019]
[1772306790029,4.63843314,1929.4,1928.8,6.32218133]
[1772306790725,4.63843314,1929.4,1929.1,0.001]
[1772306792065,5.9342399,1929.3,1929.1,0.001]
[1772306792852,4.63843314,1929.5,1929.1,5.02704822]
[1772306793054,4.64043314,1929.7,1929.1,5.02704822]
[1772306793423,5.93597371,1929.7,1929.1,5.02704822]
[1772306793650,4.63843314,1929.6,1929.1,5.02704822]
[1772306794055,4.63843314,1929.6,1929.2,1.29587393]
[1772306794225,4.63843314,1929.6,1929.2,6.32192215]
[1772306795151,5.93404898,1929.6,1929.2,5.02604822]
[1772306796070,0.002,1930.0,1929.3,5.02604822]
[1772306796269,4.63843314,1929.9,1929.3,5.02604822]
[1772306796456,5.93577246,1930.0,1929.3,5.02604822]
[1772306796658,4.63843314,1929.9,1929.3,5.02604822]
[1772306800541,4.63843314,1929.8,1929.4,1.2957396]
[1772306800967,4.63843314,1929.8,1929.3,6.32181631]
[1772306801413,4.63843314,1929.8,1929.1,8.58793808]
[1772306801676,4.63843314,1929.8,1929.2,5.02604822]
[1772306802459,0.002,1930.0,1929.5,5.02604822]
[1772306802661,0.002,1930.0,1929.7,5.02604822]
[1772306804080,0.002,1929.8,1929.7,5.02604822]
[1772306804580,4.61652372,1930.1,1929.7,5.02604822]
[1772306804880,4.82391318,1930.0,1929.5,6.21192071]
[1772306805082,4.82391318,1930.0,1929.3,4.91628761]
[1772306806295,4.93630605,1930.0,1929.5,4.60471]
[1772306806886,6.23165104,1930.0,1929.6,1.2956053]
[1772306807082,4.93630605,1930.0,1929.6,1.2956053]
[1772306807277,6.23164316,1930.0,1929.6,1.2956053]
[1772306807491,4.93630605,1930.0,1929.6,1.2956053]
[1772306807783,6.23164625,1930.0,1929.5,5.90038245]
[1772306808280,4.93630605,1929.9,1929.3,5.90048632]
[1772306808589,6.23164625,1930.0,1929.4,4.60471]
[1772306808911,4.93630605,1929.9,1929.4,4.60471]
[1772306809397,1.29547103,1929.8,1929.4,5.90042372]
[1772306810101,6.23170995,1929.9,1929.4,5.90042372]
[1772306810476,6.23170995,1929.9,1929.5,4.60471]
[1772306811903,6.23170995,1929.9,1929.5,5.90035532]
[1772306812603,4.93630605,1929.8,1929.3,4.60471]
[1772306812822,4.93630605,1929.8,1929.2,5.90156027]
[1772306813222,4.93630605,1929.8,1929.3,4.60471]
[1772306814111,6.23184421,1929.7,1929.3,4.60471]
[1772306814625,4.93630605,1929.6,1929.2,0.001]